fUSD/lending_fUSD_20240406
["ID","MTS","AMOUNT","RATE_DAILY","PERIOD"]
[321681483,1712382691397,-725.66972383,0.00024996,2]
[321681484,1712382691406,-500.31,0.00024996,2]
[321681485,1712382691415,-500.31,0.00024996,2]
[321681486,1712382691424,-500.31,0.00024996,2]
[321681487,1712382691433,-1370.81,0.00024996,2]
[321681488,1712382691443,-500.31,0.00024996,2]
[321681489,1712382691453,-1370.81,0.00024996,2]
[321681490,1712382691462,-500.4114133,0.00024996,2]
[321681491,1712382691471,-1370.81,0.00024996,2]
[321681492,1712382691481,-1370.81,0.00024996,2]
[321681493,1712382691491,-1370.85607234,0.00024996,2]
[321681494,1712382691500,-867.63,0.00024996,2]
[321681495,1712382691510,-867.63,0.00024996,2]
[321681496,1712382691519,-867.63,0.00024996,2]
[321681497,1712382691529,-867.63,0.00024996,2]
[321681498,1712382691542,-867.69873331,0.00024996,2]
[321681499,1712382691552,-674.2,0.00024996,2]
[321681500,1712382691562,-674.2,0.00024996,2]
[321681501,1712382691571,-674.2,0.00024996,2]
[321681502,1712382691581,-674.2,0.00024996,2]
[321681503,1712382691590,-674.28794906,0.00024996,2]
[321681504,1712382691599,-706.95,0.00024996,2]
[321681505,1712382691608,-706.95,0.00024996,2]
[321681506,1712382691618,-706.95,0.00024996,2]
[321681507,1712382691627,-706.95,0.00024996,2]
[321681508,1712382691636,-707.0889687,0.00024996,2]
[321681509,1712382691646,-881.94,0.00024996,2]
[321681510,1712382691655,-881.94,0.00024996,2]
[321681511,1712382691664,-881.94,0.00024996,2]
[321681512,1712382691673,-881.94,0.00024996,2]
[321681513,1712382691683,-881.96188547,0.00024996,2]
[321681514,1712382691693,-552.74,0.00024996,2]
[321681515,1712382691703,-552.74,0.00024996,2]
[321681516,1712382691712,-552.74,0.00024996,2]
[321681517,1712382691722,-552.74,0.00024996,2]
[321681518,1712382691731,-552.94675226,0.00024996,2]
[321681519,1712382691741,-730.99,0.00024996,2]
[321681520,1712382691751,-730.99,0.00024996,2]
[321681521,1712382691760,-730.99,0.00024996,2]
[321681522,1712382691770,-730.99,0.00024996,2]
[321681523,1712382691779,-731.02880987,0.00024996,2]
[321681524,1712382691789,-500.0,0.00024996,2]
[321681525,1712382691798,-503.21854199,0.00024996,2]
[321681526,1712382691808,-592.63,0.00024996,2]
[321681527,1712382691817,-592.63,0.00024996,2]
[321681528,1712382691827,-592.63,0.00024996,2]
[321681529,1712382691836,-592.63,0.00024996,2]
[321681530,1712382691845,-592.84180142,0.00024996,2]
[321681531,1712382691855,-1664.31,0.00024996,2]
[321681532,1712382691865,-1664.31,0.00024996,2]
[321681533,1712382691875,-1664.31,0.00024996,2]
[321681534,1712382691884,-1664.31,0.00024996,2]
[321681535,1712382691893,-1664.38592789,0.00024996,2]
[321681536,1712382691902,-755.0,0.00024996,2]
[321681537,1712382691912,-755.0,0.00024996,2]
[321681538,1712382691921,-755.0,0.00024996,2]
[321681539,1712382691930,-755.0,0.00024996,2]
[321681540,1712382691939,-755.17227035,0.00024996,2]
[321681541,1712382691949,-660.72,0.00024996,2]
[321681542,1712382691959,-660.72,0.00024996,2]
[321681543,1712382691968,-660.72,0.00024996,2]
[321681544,1712382691978,-660.72,0.00024996,2]
[321681545,1712382691987,-660.91456872,0.00024996,2]
[321681546,1712382691996,-996.43,0.00024996,2]
[321681547,1712382692005,-996.43,0.00024996,2]
[321681548,1712382692015,-996.43,0.00024996,2]
[321681549,1712382692024,-544.60146695,0.00024996,2]
[321681550,1712382692676,-384.12766558,0.00023899,2]
[321681551,1712382692928,-115.86539522,0.00023899,2]
[321681552,1712382692937,-568.3819726,0.00023899,2]
[321681553,1712382692946,-101.04747005,0.00024229,2]
[321681554,1712382692960,-328.81607268,0.00024229,2]
[321681555,1712382692970,-361.36951797,0.00024656,2]
[321681556,1712382692979,-308.83742654,0.00024656,2]
[321681557,1712382693012,-385.40562752,0.00024656,2]
[321681558,1712382693024,-880.592753,0.00024656,2]
[321681561,1712382919233,-600.0,0.00023,2]
[321681562,1712383030798,1450.0,0.00021,3]
[321681563,1712383089840,-260.5,0.00021547,2]
[321681564,1712383452670,247.47,0.00020946,2]
[321681565,1712383453165,806.48974473,0.00022,3]
[321681566,1712383546007,150.0,0.00031,120]
[321681567,1712383549275,150.0,0.0003,120]
[321681569,1712383585238,-150.0,0.00022806,2]
[321681570,1712383585268,-9926.81,0.00022806,2]
[321681571,1712383585297,-640.0,0.00022807,2]
[321681572,1712383585327,-307.55,0.00022807,2]
[321681573,1712383585357,-2047.62177569,0.00022999,2]
[321681574,1712383585388,-1012.61961098,0.00023,2]
[321681575,1712383585417,-1500.0,0.00023,3]
[321681684,1712383733477,161.18,0.000228,2]
[321681703,1712383752724,163.82,0.00022994,2]
[321681735,1712383831954,-500.0,0.00023209,2]
[321681737,1712383831964,-247.47,0.0002321,2]
[321681738,1712383831973,-150.0,0.00023498,2]
[321681739,1712383831983,-410.02429263,0.00023499,2]
[321681740,1712383831992,-11468.75498691,0.00023499,2]
[321681741,1712383832001,-852.68058854,0.00023499,2]
[321681742,1712383832013,-1082.27910315,0.00023499,2]
[321681743,1712383832023,-219.95300718,0.00023499,2]
[321681744,1712383832032,-7523.88632,0.000235,2]
[321681745,1712383832041,-2183.78906368,0.000235,2]
[321681746,1712383832064,-756.27288357,0.000235,2]
[321681747,1712383832075,-1629.90091949,0.000235,2]
[321681748,1712383832091,-2930.03713326,0.000235,2]
[321681749,1712383832101,-360.0,0.00023523,2]
[321681750,1712383832110,-854.13807325,0.00023555,2]
[321681751,1712383832120,-153.00377094,0.00023555,2]
[321681752,1712383832129,-185.33286689,0.00023555,2]
[321681753,1712383832138,-1968.9060676,0.00023555,2]
[321681754,1712383832155,-20636.66839561,0.00023555,2]
[321681755,1712383832184,-321.95883644,0.00023555,2]
[321681756,1712383832196,-273.41198391,0.00023555,2]
[321681757,1712383832208,-3232.36858495,0.00023555,2]
[321681758,1712383832220,-811.05669613,0.00023555,2]
[321681759,1712383832296,-313.16549398,0.00023555,2]
[321681798,1712383838179,-2145374.70441627,0.00023555,2]
[321681799,1712383838195,-587181.94988455,0.00023555,2]
[321681800,1712383838206,-416.48,0.00023589,3]
[321681801,1712383838217,-1111847.59294299,0.00023597,2]
[321681803,1712383840129,-1122.59740116,0.00023597,2]
[321681804,1712383840284,-500.91,0.00023597,2]
[321681805,1712383843440,-489.291361,0.00023597,2]
[321681806,1712383843452,-346.494995,0.00023597,2]
[321681807,1712383843469,-1092.00553733,0.00023597,2]
[321681808,1712383843481,-546888.52957644,0.00023597,2]
[321681828,1712383847729,-324.26603187,0.00023596,2]
[321681829,1712383847872,-1054.922735,0.00023596,2]
[321681830,1712383847886,-120.81123313,0.00023596,2]
[321681831,1712383847895,-1865.59876687,0.00023597,2]
[321681832,1712383848143,-8115.79362244,0.00023597,2]
[321681834,1712383848152,-12372.01553606,0.00023599,2]
[321681840,1712383848201,-40745.76104733,0.00023599,2]
[321681919,1712383859478,151.0,0.000219,3]
[321681920,1712383885545,3939.39861333,0.00018669,2]
[321681921,1712383885571,1860.60138667,0.00018669,2]
[321681922,1712383961188,150.0,0.00023,5]
[321681924,1712383972024,300.0,0.00023,3]
[321681931,1712384142226,2000.0,0.00023591,5]
[321681933,1712384158828,278.75,0.00021078,2]
[321681937,1712384207049,1000.0,0.00023598,5]
[321681938,1712384207476,808.32283159,0.00023598,5]
[321681945,1712384356438,666.040615,0.00024,4]
[321681946,1712384406738,666.040615,0.00024,4]
[321681947,1712384408254,666.040615,0.00024,4]
[321681948,1712384409797,666.040615,0.00024,4]
[321681949,1712384409923,666.040615,0.00024,4]
[321681950,1712384410383,666.040615,0.00024,4]
[321681951,1712384410866,666.040615,0.00024,4]
[321681952,1712384411350,666.040615,0.00024,4]
[321681953,1712384411847,666.040615,0.00024,4]
[321681954,1712384412388,666.040615,0.00024,4]
[321681955,1712384412954,666.040615,0.00024,4]
[321681956,1712384413505,666.040615,0.00024,4]
[321681957,1712384414088,666.040615,0.00024,4]
[321681958,1712384414625,666.040615,0.00024,4]
[321681959,1712384415188,666.040615,0.00024,4]
[321681960,1712384415746,666.040615,0.00024,4]
[321681961,1712384416292,666.040615,0.00024,4]
[321681962,1712384418236,666.040615,0.00024,4]
[321681963,1712384418400,666.040615,0.00024,4]
[321681964,1712384418817,666.040615,0.00024,4]
[321681965,1712384419304,666.040615,0.00024,4]
[321681966,1712384419894,17560.64861333,0.00023,2]
[321681967,1712384467080,666.040615,0.00024,4]
[321681968,1712384467676,666.040615,0.00024,4]
[321681969,1712384468066,666.040615,0.00024,4]
[321681970,1712384468414,666.040615,0.00024,4]
[321681971,1712384468858,666.040615,0.00024,4]
[321681972,1712384470109,666.040615,0.00024,4]
[321681973,1712384470362,666.040615,0.00024,4]
[321681974,1712384470715,666.040615,0.00024,4]
[321681975,1712384471077,666.040615,0.00024,4]
[321681976,1712384471407,666.040615,0.00024,4]
[321681977,1712384471489,150.0,0.00023697,10]
[321681978,1712384471999,666.040615,0.00024,4]
[321681979,1712384480956,631.040615,0.00024,4]
[321681980,1712384557148,151.040615,0.00024,4]
[321681981,1712384557448,151.040615,0.00024,4]
[321681982,1712384557933,151.040615,0.00024,4]
[321681983,1712384558340,151.040615,0.00024,4]
[321681984,1712384558834,151.040615,0.00024,4]
[321681985,1712384559365,151.040615,0.00024,4]
[321681986,1712384559896,151.040615,0.00024,4]
[321681987,1712384560448,151.040615,0.00024,4]
[321681988,1712384560755,151.040615,0.00024,4]
[321681989,1712384561351,151.040615,0.00024,4]
[321681990,1712384561973,151.040615,0.00024,4]
[321681991,1712384562409,151.040615,0.00024,4]
[321681992,1712384567329,151.040615,0.00024,4]
[321681994,1712384590322,151.040615,0.00024,4]
[321681995,1712384590787,151.040615,0.00024,4]
[321681996,1712384591145,151.040615,0.00024,4]
[321681997,1712384591518,151.040615,0.00024,4]
[321681998,1712384591803,151.040615,0.00024,4]
[321681999,1712384592162,151.040615,0.00024,4]
[321682000,1712384592532,151.040615,0.00024,4]
[321682002,1712384619474,151.040615,0.00024,4]
[321682003,1712384620503,151.040615,0.00024,4]
[321682004,1712384631205,151.040615,0.00024,4]
[321682005,1712384632427,92.03,0.00020745,2]
[321682007,1712384659019,198.87426299,0.00024,4]
[321682009,1712384737437,-172.78,0.00020745,2]
[321682015,1712384836472,1450.0,0.00021,3]
[321682027,1712385032464,-387.00387153,0.00022608,2]
[321682029,1712385038327,-100.99612847,0.00022608,2]
[321682030,1712385038339,-159.18,0.00022636,2]
[321682031,1712385038348,-512.0,0.00022668,2]
[321682032,1712385038357,-153.77,0.00022668,2]
[321682033,1712385038366,-163.82,0.00022815,2]
[321682034,1712385038375,-1500.0,0.00023,3]
[321682035,1712385038384,-264.81,0.00023009,2]
[321682036,1712385038394,-2121.09718,0.0002347,2]
[321682037,1712385038403,-150.0,0.00023475,2]
[321682038,1712385038412,-531.78908268,0.00023497,2]
[321682039,1712385038423,-159.30049202,0.00023498,2]
[321682040,1712385038434,-170.57947174,0.00023499,2]
[321682041,1712385038446,-842.5432036,0.00023499,2]
[321682042,1712385038456,-153.00377094,0.00023499,2]
[321682043,1712385038466,-191.14823381,0.00023499,2]
[321682044,1712385038477,-426.81642799,0.00023499,2]
[321682045,1712385038493,-107.51686669,0.00023499,2]
[321682047,1712385038503,-150.0,0.000235,2]
[321682049,1712385038512,-150.098359,0.00023562,2]
[321682051,1712385038521,-1095.35407294,0.00023589,2]
[321682052,1712385038544,-2852.00652488,0.00023589,2]
[321682054,1712385038557,-8224.24934248,0.00023589,2]
[321682055,1712385038568,-7469.687389,0.00023589,2]
[321682056,1712385038581,-6773.18,0.00023589,2]
[321682057,1712385038592,-184.72,0.00023589,2]
[321682058,1712385038605,-13344.48,0.00023589,2]
[321682059,1712385038616,-1089.63,0.00023589,2]
[321682060,1712385038627,-504.94822144,0.00023589,2]
[321682061,1712385038638,-500.0,0.00023589,2]
[321682062,1712385038650,-500.0,0.00023589,2]
[321682063,1712385038662,-878.59,0.00023589,2]
[321682064,1712385038672,-500.0,0.00023589,2]
[321682065,1712385038684,-718.19,0.00023589,2]
[321682066,1712385038696,-500.0,0.00023589,2]
[321682067,1712385038707,-500.0,0.00023589,2]
[321682068,1712385038719,-317.39158975,0.00023589,2]
[321682069,1712385038729,-500.0,0.00023589,2]
[321682070,1712385038743,-854.99,0.0002359,2]
[321682071,1712385038752,-500.0,0.0002359,2]
[321682072,1712385038762,-500.0,0.0002359,2]
[321682073,1712385038773,-158.67109682,0.0002359,2]
[321682074,1712385038783,-503.44767913,0.0002359,2]
[321682075,1712385038794,-516.06762008,0.0002359,2]
[321682076,1712385038804,-500.0,0.0002359,2]
[321682077,1712385038815,-500.0,0.0002359,2]
[321682078,1712385038826,-503.90695785,0.0002359,2]
[321682079,1712385038836,-198.20087077,0.0002359,2]
[321682080,1712385038845,-956.68,0.0002359,2]
[321682081,1712385038855,-502.68478817,0.0002359,2]
[321682082,1712385038865,-500.0,0.0002359,2]
[321682083,1712385038876,-500.0,0.0002359,2]
[321682084,1712385038886,-500.0,0.0002359,2]
[321682085,1712385038896,-500.0,0.0002359,2]
[321682086,1712385038905,-500.0,0.0002359,2]
[321682087,1712385038917,-500.0,0.0002359,2]
[321682088,1712385038928,-529.01426156,0.0002359,2]
[321682089,1712385038938,-500.0,0.0002359,2]
[321682090,1712385038947,-526.44022788,0.0002359,2]
[321682091,1712385038956,-465.97353369,0.0002359,2]
[321682092,1712385038965,-500.0,0.0002359,2]
[321682093,1712385038976,-500.0,0.0002359,2]
[321682094,1712385038988,-500.0,0.0002359,2]
[321682095,1712385038997,-500.0,0.0002359,2]
[321682096,1712385039007,-500.0,0.0002359,2]
[321682097,1712385039016,-500.0,0.0002359,2]
[321682098,1712385039026,-500.0,0.0002359,2]
[321682099,1712385039035,-500.0,0.0002359,2]
[321682100,1712385039044,-500.0,0.0002359,2]
[321682101,1712385039056,-500.0,0.0002359,2]
[321682102,1712385039065,-500.0,0.0002359,2]
[321682103,1712385039074,-500.0,0.0002359,2]
[321682104,1712385039083,-500.0,0.0002359,2]
[321682105,1712385039093,-500.0,0.0002359,2]
[321682106,1712385039102,-500.0,0.0002359,2]
[321682107,1712385039112,-500.0,0.0002359,2]
[321682108,1712385039121,-500.0,0.0002359,2]
[321682109,1712385039130,-500.0,0.0002359,2]
[321682110,1712385039139,-500.0,0.0002359,2]
[321682111,1712385039148,-500.0,0.0002359,2]
[321682112,1712385039158,-500.0,0.0002359,2]
[321682113,1712385039167,-500.0,0.0002359,2]
[321682114,1712385039177,-521.32237194,0.0002359,2]
[321682115,1712385039186,-500.0,0.0002359,2]
[321682116,1712385039195,-500.0,0.0002359,2]
[321682117,1712385039205,-500.0,0.0002359,2]
[321682118,1712385039214,-383.75020909,0.0002359,2]
[321682119,1712385039224,-500.0,0.0002359,2]
[321682120,1712385039233,-503.28370043,0.0002359,2]
[321682121,1712385039246,-500.0,0.0002359,2]
[321682122,1712385039255,-500.0,0.0002359,2]
[321682123,1712385039265,-500.0,0.0002359,2]
[321682124,1712385039274,-500.0,0.0002359,2]
[321682125,1712385039284,-514.19896976,0.0002359,2]
[321682126,1712385039293,-500.0,0.0002359,2]
[321682127,1712385039302,-507.18633297,0.0002359,2]
[321682128,1712385039312,-500.0,0.0002359,2]
[321682129,1712385039322,-500.0,0.0002359,2]
[321682130,1712385039331,-500.0,0.0002359,2]
[321682131,1712385039341,-500.0,0.0002359,2]
[321682132,1712385039350,-500.0,0.0002359,2]
[321682133,1712385039359,-500.0,0.0002359,2]
[321682134,1712385039368,-516.11586736,0.0002359,2]
[321682135,1712385039377,-500.0,0.0002359,2]
[321682136,1712385039386,-500.0,0.0002359,2]
[321682137,1712385039395,-500.0,0.0002359,2]
[321682138,1712385039404,-500.0,0.0002359,2]
[321682139,1712385039415,-500.0,0.0002359,2]
[321682140,1712385039424,-500.0,0.0002359,2]
[321682141,1712385039433,-500.0,0.0002359,2]
[321682142,1712385039442,-457.04986368,0.0002359,2]
[321682143,1712385039451,-500.0,0.0002359,2]
[321682144,1712385039460,-500.0,0.0002359,2]
[321682145,1712385039469,-500.0,0.0002359,2]
[321682146,1712385039479,-526.46161979,0.0002359,2]
[321682147,1712385039488,-507.3251371,0.0002359,2]
[321682148,1712385039497,-500.0,0.0002359,2]
[321682149,1712385039506,-500.0,0.0002359,2]
[321682150,1712385039515,-500.0,0.0002359,2]
[321682151,1712385039524,-500.0,0.0002359,2]
[321682152,1712385039533,-517.58836865,0.0002359,2]
[321682153,1712385039542,-511.97705311,0.0002359,2]
[321682154,1712385039551,-500.0,0.0002359,2]
[321682155,1712385039560,-505.73489196,0.0002359,2]
[321682156,1712385039569,-515.2159873,0.0002359,2]
[321682157,1712385039578,-507.80069309,0.0002359,2]
[321682158,1712385039587,-500.0,0.0002359,2]
[321682159,1712385039596,-521.60982679,0.0002359,2]
[321682160,1712385039605,-500.0,0.0002359,2]
[321682161,1712385039614,-500.0,0.0002359,2]
[321682162,1712385039623,-518.57458409,0.0002359,2]
[321682163,1712385039633,-510.04467891,0.0002359,2]
[321682164,1712385039642,-500.0,0.0002359,2]
[321682165,1712385039651,-500.0,0.0002359,2]
[321682166,1712385039660,-500.0,0.0002359,2]
[321682167,1712385039669,-500.0,0.0002359,2]
[321682168,1712385039680,-506.5835622,0.0002359,2]
[321682169,1712385039689,-512.33528848,0.0002359,2]
[321682170,1712385039698,-150.0,0.0002359,2]
[321682171,1712385039707,-500.0,0.0002359,2]
[321682172,1712385039716,-501.6384102,0.0002359,2]
[321682173,1712385039725,-500.0,0.0002359,2]
[321682174,1712385039734,-500.0,0.0002359,2]
[321682175,1712385039743,-500.0,0.0002359,2]
[321682176,1712385039752,-505.01984294,0.0002359,2]
[321682177,1712385039761,-500.0,0.0002359,2]
[321682178,1712385039770,-500.0,0.0002359,2]
[321682179,1712385039780,-500.0,0.0002359,2]
[321682180,1712385039789,-500.0,0.0002359,2]
[321682181,1712385039798,-503.49616492,0.0002359,2]
[321682182,1712385039807,-500.0,0.0002359,2]
[321682183,1712385039817,-500.0,0.0002359,2]
[321682184,1712385039826,-500.0,0.0002359,2]
[321682185,1712385039836,-500.0,0.0002359,2]
[321682186,1712385039846,-500.0,0.0002359,2]
[321682187,1712385039855,-500.0,0.0002359,2]
[321682188,1712385039865,-500.0,0.0002359,2]
[321682189,1712385039874,-500.0,0.0002359,2]
[321682190,1712385039884,-500.0,0.0002359,2]
[321682191,1712385039894,-500.0,0.0002359,2]
[321682192,1712385039904,-531.43850792,0.0002359,2]
[321682193,1712385039914,-508.17375044,0.0002359,2]
[321682194,1712385039923,-500.0,0.0002359,2]
[321682195,1712385039933,-500.0,0.0002359,2]
[321682196,1712385039942,-500.0,0.0002359,2]
[321682197,1712385039953,-500.00011956,0.0002359,2]
[321682198,1712385039962,-500.0,0.0002359,2]
[321682199,1712385039971,-500.0,0.0002359,2]
[321682200,1712385039984,-538.82811335,0.0002359,2]
[321682201,1712385039993,-502.32377786,0.0002359,2]
[321682202,1712385040004,-500.0,0.0002359,2]
[321682203,1712385040014,-324.69888417,0.0002359,2]
[321682205,1712385040023,-500.0,0.0002359,2]
[321682206,1712385040032,-534.95926862,0.0002359,2]
[321682207,1712385040042,-500.0,0.0002359,2]
[321682208,1712385040051,-500.0,0.0002359,2]
[321682209,1712385040062,-278.70406176,0.0002359,2]
[321682210,1712385040071,-370.2454019,0.0002359,2]
[321682211,1712385040081,-711.12,0.0002359,2]
[321682212,1712385040090,-1191.4,0.0002359,2]
[321682213,1712385040100,-500.0,0.0002359,2]
[321682214,1712385040110,-540.82314309,0.0002359,2]
[321682215,1712385040119,-500.0,0.0002359,2]
[321682216,1712385040128,-500.0,0.0002359,2]
[321682217,1712385040137,-500.0,0.0002359,2]
[321682218,1712385040147,-500.0,0.0002359,2]
[321682219,1712385040156,-1338.87,0.0002359,2]
[321682220,1712385040165,-500.0,0.0002359,2]
[321682221,1712385040174,-500.0,0.0002359,2]
[321682222,1712385040184,-889.63,0.0002359,2]
[321682223,1712385040193,-500.0,0.0002359,2]
[321682224,1712385040202,-1617.72,0.0002359,2]
[321682225,1712385040212,-712.71,0.0002359,2]
[321682226,1712385040222,-1122.94,0.0002359,2]
[321682227,1712385040234,-633.5,0.0002359,2]
[321682228,1712385040246,-1136.52,0.0002359,2]
[321682229,1712385040256,-500.0,0.0002359,2]
[321682230,1712385040265,-500.0,0.0002359,2]
[321682231,1712385040275,-3361.27,0.0002359,2]
[321682232,1712385040286,-500.0,0.0002359,2]
[321682233,1712385040295,-1448.95,0.0002359,2]
[321682234,1712385040305,-515.40152557,0.0002359,2]
[321682235,1712385040315,-465.16600372,0.0002359,2]
[321682236,1712385040326,-511.48298561,0.0002359,2]
[321682237,1712385040337,-733.48,0.0002359,2]
[321682238,1712385040346,-970.52025952,0.0002359,2]
[321682239,1712385040355,-503.3,0.0002359,2]
[321682240,1712385040364,-500.0,0.0002359,2]
[321682241,1712385040374,-958.97,0.0002359,2]
[321682242,1712385040383,-500.0,0.0002359,2]
[321682243,1712385040392,-10497.24,0.0002359,2]
[321682244,1712385040403,-223.41670742,0.0002359,2]
[321682245,1712385040413,-1080.2,0.0002359,2]
[321682246,1712385040422,-500.0,0.0002359,2]
[321682247,1712385040431,-500.0,0.0002359,2]
[321682248,1712385040441,-7795.94,0.0002359,2]
[321682249,1712385040450,-500.0,0.0002359,2]
[321682250,1712385040460,-500.0,0.0002359,2]
[321682251,1712385040469,-3754.08,0.0002359,2]
[321682252,1712385040480,-503.19,0.0002359,2]
[321682253,1712385040490,-1130.9,0.0002359,2]
[321682254,1712385040499,-834.04,0.0002359,2]
[321682255,1712385040509,-500.0,0.0002359,2]
[321682256,1712385040518,-535.24,0.0002359,2]
[321682257,1712385040528,-501.56415651,0.0002359,2]
[321682258,1712385040538,-1829.98,0.0002359,2]
[321682259,1712385040548,-2854.81,0.0002359,2]
[321682260,1712385040559,-511.17617321,0.0002359,2]
[321682261,1712385040569,-511.86619851,0.0002359,2]
[321682262,1712385040579,-500.0,0.0002359,2]
[321682263,1712385040590,-1000.0,0.0002359,2]
[321682264,1712385040600,-500.0,0.0002359,2]
[321682265,1712385040609,-502.74337278,0.0002359,2]
[321682266,1712385040619,-501.74303924,0.0002359,2]
[321682267,1712385040628,-669.48,0.0002359,2]
[321682268,1712385040637,-514.66472145,0.0002359,2]
[321682269,1712385040646,-520.51236198,0.0002359,2]
[321682270,1712385040656,-623.68,0.0002359,2]
[321682271,1712385040665,-500.0,0.0002359,2]
[321682272,1712385040676,-1674.23,0.0002359,2]
[321682273,1712385040686,-1053.34,0.0002359,2]
[321682274,1712385040697,-432.16120926,0.0002359,2]
[321682275,1712385040707,-511.67771224,0.0002359,2]
[321682276,1712385040716,-503.71599646,0.0002359,2]
[321682277,1712385040726,-500.0,0.0002359,2]
[321682278,1712385040737,-500.0,0.0002359,2]
[321682279,1712385040748,-503.25657357,0.0002359,2]
[321682280,1712385040757,-500.0,0.0002359,2]
[321682281,1712385040766,-2273.8,0.0002359,2]
[321682282,1712385040776,-500.0,0.0002359,2]
[321682283,1712385040786,-500.0,0.0002359,2]
[321682284,1712385040795,-500.0,0.0002359,2]
[321682286,1712385040804,-500.0,0.0002359,2]
[321682288,1712385040813,-500.0,0.0002359,2]
[321682289,1712385040823,-2948.14,0.0002359,2]
[321682290,1712385040832,-342.0375208,0.0002359,2]
[321682291,1712385040841,-906.98,0.0002359,2]
[321682292,1712385040851,-428.24300424,0.0002359,2]
[321682293,1712385040860,-500.0,0.0002359,2]
[321682294,1712385040869,-536.12145984,0.0002359,2]
[321682295,1712385040879,-500.0,0.0002359,2]
[321682296,1712385040888,-503.68072644,0.0002359,2]
[321682297,1712385040899,-507.66909414,0.0002359,2]
[321682298,1712385040908,-500.0,0.0002359,2]
[321682299,1712385040917,-920.35,0.0002359,2]
[321682300,1712385040927,-500.0,0.0002359,2]
[321682301,1712385040936,-433.30760351,0.0002359,2]
[321682302,1712385040945,-500.0,0.0002359,2]
[321682303,1712385040955,-873.76,0.0002359,2]
[321682304,1712385040964,-1426.99,0.0002359,2]
[321682305,1712385040974,-500.0,0.0002359,2]
[321682306,1712385040988,-500.0,0.0002359,2]
[321682307,1712385040999,-500.0,0.0002359,2]
[321682308,1712385041008,-500.0,0.0002359,2]
[321682309,1712385041019,-514.88912302,0.0002359,2]
[321682310,1712385041029,-500.0,0.0002359,2]
[321682311,1712385041038,-500.0,0.0002359,2]
[321682312,1712385041049,-504.92598488,0.0002359,2]
[321682313,1712385041058,-1238.73,0.0002359,2]
[321682314,1712385041068,-500.0,0.0002359,2]
[321682315,1712385041078,-500.0,0.0002359,2]
[321682316,1712385041087,-500.0,0.0002359,2]
[321682317,1712385041097,-1731.14,0.0002359,2]
[321682318,1712385041106,-649.15025195,0.0002359,2]
[321682319,1712385041117,-565.52387388,0.0002359,2]
[321682320,1712385041126,-1518.84,0.0002359,2]
[321682321,1712385041136,-502.53569725,0.0002359,2]
[321682322,1712385041146,-500.0,0.0002359,2]
[321682323,1712385041157,-500.0,0.0002359,2]
[321682324,1712385041166,-500.0,0.0002359,2]
[321682325,1712385041175,-345.24822518,0.0002359,2]
[321682326,1712385041185,-500.0,0.0002359,2]
[321682327,1712385041195,-541.9365969,0.0002359,2]
[321682328,1712385041206,-500.0,0.0002359,2]
[321682329,1712385041216,-314.52099337,0.0002359,2]
[321682330,1712385041227,-500.0,0.0002359,2]